fUST/lending_fUST_20250520
["ID","MTS","AMOUNT","RATE_DAILY","PERIOD"]
[361735283,1747738248991,-360.99160513,0.00016986,2]
[361735284,1747738249001,-1179.22,0.00016986,2]
[361735285,1747738249010,-340.0,0.00016986,2]
[361735286,1747738249019,-660.64,0.00016986,2]
[361735287,1747738249029,-451.17,0.00016986,2]
[361735288,1747738249038,-1760.65,0.00016986,2]
[361735289,1747738249048,-430.0,0.00016986,2]
[361735290,1747738249057,-430.0,0.00016986,2]
[361735291,1747738249068,-340.0,0.00016986,2]
[361735292,1747738249077,-340.0,0.00016986,2]
[361735293,1747738249087,-447.88,0.00016986,2]
[361735294,1747738249097,-731.84,0.00016986,2]
[361735295,1747738249106,-476.44,0.00016986,2]
[361735296,1747738249115,-430.0,0.00016986,2]
[361735297,1747738249124,-1820.69,0.00016986,2]
[361735298,1747738249134,-430.0,0.00016986,2]
[361735299,1747738249143,-340.0,0.00016986,2]
[361735300,1747738249152,-340.0,0.00016986,2]
[361735301,1747738249162,-362.79410507,0.00016986,2]
[361735302,1747738249171,-340.0,0.00016986,2]
[361735303,1747738249181,-872.77,0.00016986,2]
[361735304,1747738249190,-261.65358283,0.00016986,2]
[361735305,1747738249201,-4745.31,0.00016986,2]
[361735306,1747738249211,-340.0,0.00016986,2]
[361735307,1747738249220,-527.01,0.00016986,2]
[361735308,1747738249231,-344.04898159,0.00016986,2]
[361735309,1747738249241,-343.83891837,0.00016986,2]
[361735310,1747738249250,-360.89179121,0.00016986,2]
[361735311,1747738249260,-340.0,0.00016986,2]
[361735312,1747738249270,-430.0,0.00016986,2]
[361735313,1747738249280,-351.03255134,0.00016986,2]
[361735314,1747738249290,-344.71425482,0.00016986,2]
[361735315,1747738249300,-5627.3,0.00016986,2]
[361735316,1747738249310,-971.3,0.00016986,2]
[361735317,1747738249327,-430.0,0.00016986,2]
[361735318,1747738249337,-430.0,0.00016986,2]
[361735319,1747738249347,-340.0,0.00016986,2]
[361735320,1747738249357,-430.0,0.00016986,2]
[361735321,1747738249367,-340.0,0.00016986,2]
[361735322,1747738249376,-430.0,0.00016986,2]
[361735323,1747738249386,-340.0,0.00016986,2]
[361735324,1747738249395,-430.0,0.00016986,2]
[361735325,1747738249406,-430.0,0.00016986,2]
[361735326,1747738249417,-430.0,0.00016986,2]
[361735327,1747738249427,-2019.01,0.00016986,2]
[361735328,1747738249437,-357.76999194,0.00016986,2]
[361735329,1747738249446,-344.82727651,0.00016986,2]
[361735330,1747738249456,-340.0,0.00016986,2]
[361735331,1747738249467,-174.13936134,0.00016986,2]
[361735332,1747738249478,-430.0,0.00016986,2]
[361735333,1747738249488,-430.0,0.00016986,2]
[361735334,1747738249498,-830.49,0.00016986,2]
[361735335,1747738249508,-430.0,0.00016986,2]
[361735336,1747738249518,-430.0,0.00016986,2]
[361735337,1747738249528,-430.0,0.00016986,2]
[361735338,1747738249538,-340.0,0.00016986,2]
[361735339,1747738249548,-844.01,0.00016986,2]
[361735340,1747738249559,-430.0,0.00016986,2]
[361735341,1747738249569,-340.0,0.00016986,2]
[361735342,1747738249579,-430.0,0.00016986,2]
[361735343,1747738249635,-430.0,0.00016986,2]
[361735344,1747738249645,-345.33195521,0.00016986,2]
[361735345,1747738249654,-674.04,0.00016986,2]
[361735346,1747738249662,-775.5,0.00016986,2]
[361735347,1747738249671,-430.0,0.00016986,2]
[361735348,1747738249681,-430.0,0.00016986,2]
[361735349,1747738249690,-844.73,0.00016986,2]
[361735350,1747738249698,-740.93,0.00016986,2]
[361735351,1747738249706,-340.0,0.00016986,2]
[361735352,1747738249715,-926.22,0.00016986,2]
[361735353,1747738249723,-430.0,0.00016986,2]
[361735354,1747738249732,-430.0,0.00016986,2]
[361735355,1747738249741,-151.0,0.00017,2]
[361735356,1747738249750,-418.56086243,0.00017021,2]
[361735357,1747738249759,-583.24249027,0.00017021,2]
[361735358,1747738249769,-1000.0,0.00017021,2]
[361735359,1747738249779,-505.28617102,0.00017021,2]
[361735360,1747738249788,-470.45239916,0.00017021,2]
[361735361,1747738249798,-1000.0,0.00017021,2]
[361735362,1747738249808,-445.02725255,0.00017021,2]
[361735363,1747738249818,-500.0,0.00017021,2]
[361735364,1747738249828,-500.0,0.00017021,2]
[361735365,1747738249838,-1000.0,0.00017021,2]
[361735366,1747738249847,-500.0,0.00017021,2]
[361735367,1747738249855,-500.0,0.00017021,2]
[361735368,1747738249864,-500.0,0.00017021,2]
[361735369,1747738249875,-510.03104256,0.00017021,2]
[361735370,1747738249885,-500.0,0.00017021,2]
[361735371,1747738249895,-709.69237098,0.00017021,2]
[361735372,1747738249904,-1000.0,0.00017021,2]
[361735373,1747738249915,-1000.0,0.00017021,2]
[361735374,1747738249925,-1000.0,0.00017021,2]
[361735375,1747738249935,-151.0,0.000171,2]
[361735376,1747738249946,-14441.76249022,0.0001721,2]
[361735377,1747738249957,-547.0,0.0001722,2]
[361735378,1747738249966,-2235.0,0.0001722,2]
[361735379,1747738249976,-707.0,0.0001722,2]
[361735380,1747738249985,-404.0,0.0001722,2]
[361735381,1747738249995,-151.0,0.0001726,2]
[361735382,1747738250005,-151.0,0.0001726,2]
[361735383,1747738250016,-151.0,0.0001726,2]
[361735384,1747738250027,-151.0,0.0001726,2]
[361735385,1747738250038,-151.0,0.0001726,2]
[361735386,1747738250047,-289.376323,0.0001726,2]
[361735387,1747738250058,-151.0,0.0001726,2]
[361735388,1747738250067,-151.0,0.0001726,2]
[361735389,1747738250078,-151.0,0.0001726,2]
[361735390,1747738250089,-151.0,0.0001726,2]
[361735391,1747738250099,-151.0,0.0001726,2]
[361735392,1747738250108,-183.27875,0.0001726,2]
[361735393,1747738250118,-151.0,0.0001726,2]
[361735394,1747738250127,-151.0,0.0001726,2]
[361735395,1747738250136,-151.0,0.0001726,2]
[361735396,1747738250146,-151.0,0.0001726,2]
[361735397,1747738250155,-151.0,0.0001726,2]
[361735398,1747738250164,-174.98108851,0.0001726,2]
[361735399,1747738250173,-430.0,0.0001726,2]
[361735400,1747738250183,-162.26997223,0.0001726,2]
[361735401,1747738250192,-430.0,0.0001726,2]
[361735402,1747738250201,-430.0,0.0001726,2]
[361735403,1747738250211,-430.0,0.0001726,2]
[361735404,1747738250221,-430.0,0.0001726,2]
[361735405,1747738250231,-430.0,0.0001726,2]
[361735406,1747738250241,-430.0,0.0001726,2]
[361735407,1747738250251,-430.0,0.0001726,2]
[361735408,1747738250260,-487.81185919,0.0001726,2]
[361735409,1747738250270,-510.0,0.0001726,2]
[361735410,1747738250279,-430.0,0.0001726,2]
[361735411,1747738250289,-369.83137306,0.0001726,2]
[361735412,1747738250299,-430.0,0.0001726,2]
[361735413,1747738250308,-430.0,0.0001726,2]
[361735414,1747738250318,-430.0,0.0001726,2]
[361735415,1747738250327,-359.88574171,0.0001726,2]
[361735416,1747738250337,-430.0,0.0001726,2]
[361735417,1747738250347,-430.0,0.0001726,2]
[361735418,1747738250358,-430.0,0.0001726,2]
[361735419,1747738250368,-430.0,0.0001726,2]
[361735420,1747738250380,-430.0,0.0001726,2]
[361735421,1747738250390,-430.0,0.0001726,2]
[361735422,1747738250401,-310.0,0.0001726,2]
[361735423,1747738250411,-310.0,0.0001726,2]
[361735424,1747738250421,-310.0,0.0001726,2]
[361735425,1747738250433,-430.0,0.0001726,2]
[361735426,1747738250443,-310.0,0.0001726,2]
[361735427,1747738250452,-430.0,0.0001726,2]
[361735428,1747738250463,-1776.74,0.0001726,2]
[361735429,1747738250474,-3412.88,0.0001726,2]
[361735430,1747738250486,-310.0,0.0001726,2]
[361735431,1747738250497,-520.16,0.0001726,2]
[361735432,1747738250508,-1930.13,0.0001726,2]
[361735433,1747738250517,-430.0,0.0001726,2]
[361735434,1747738250527,-492.89890936,0.0001726,2]
[361735435,1747738250537,-430.0,0.0001726,2]
[361735436,1747738250547,-1061.63,0.0001726,2]
[361735437,1747738250558,-603.79,0.0001726,2]
[361735438,1747738250569,-310.0,0.0001726,2]
[361735439,1747738250579,-506.36,0.0001726,2]
[361735440,1747738250588,-430.0,0.0001726,2]
[361735441,1747738250599,-430.0,0.0001726,2]
[361735442,1747738250610,-430.0,0.0001726,2]
[361735443,1747738250620,-1753.15,0.0001726,2]
[361735444,1747738250630,-1305.03,0.0001726,2]
[361735445,1747738250640,-430.0,0.0001726,2]
[361735446,1747738250651,-691.23,0.0001726,2]
[361735447,1747738250663,-1148.42,0.0001726,2]
[361735448,1747738250673,-572.24,0.0001726,2]
[361735449,1747738250683,-2306.53,0.0001726,2]
[361735450,1747738250692,-430.0,0.0001726,2]
[361735451,1747738250702,-430.0,0.0001726,2]
[361735452,1747738250712,-430.0,0.0001726,2]
[361735453,1747738250723,-582.21,0.0001726,2]
[361735454,1747738250733,-430.0,0.0001726,2]
[361735455,1747738250743,-430.0,0.0001726,2]
[361735456,1747738250754,-430.0,0.0001726,2]
[361735457,1747738250764,-869.16,0.0001726,2]
[361735458,1747738250774,-1275.53,0.0001726,2]
[361735459,1747738250785,-310.0,0.0001726,2]
[361735460,1747738250795,-596.79,0.0001726,2]
[361735461,1747738250804,-430.0,0.0001726,2]
[361735462,1747738250814,-318.67535326,0.0001726,2]
[361735463,1747738250825,-312.23502162,0.0001726,2]
[361735464,1747738250835,-958.75,0.0001726,2]
[361735465,1747738250846,-430.0,0.0001726,2]
[361735466,1747738250856,-406.87933725,0.0001726,2]
[361735467,1747738250866,-310.0,0.0001726,2]
[361735468,1747738250879,-430.0,0.0001726,2]
[361735469,1747738250890,-323.84184174,0.0001726,2]
[361735470,1747738250900,-1444.05,0.0001726,2]
[361735471,1747738250911,-430.0,0.0001726,2]
[361735472,1747738250922,-310.0,0.0001726,2]
[361735473,1747738250932,-295.846454,0.0001726,2]
[361735474,1747738250942,-430.0,0.0001726,2]
[361735475,1747738250952,-812.17,0.0001726,2]
[361735476,1747738250962,-430.0,0.0001726,2]
[361735477,1747738250971,-573.94,0.0001726,2]
[361735478,1747738250981,-430.0,0.0001726,2]
[361735479,1747738250991,-430.0,0.0001726,2]
[361735480,1747738251001,-852.85,0.0001726,2]
[361735481,1747738251010,-594.94,0.0001726,2]
[361735482,1747738251020,-1179.22,0.0001726,2]
[361735483,1747738251029,-660.64,0.0001726,2]
[361735484,1747738251039,-451.17,0.0001726,2]
[361735485,1747738251050,-1760.65,0.0001726,2]
[361735486,1747738251059,-430.0,0.0001726,2]
[361735487,1747738251069,-310.0,0.0001726,2]
[361735488,1747738251078,-447.88,0.0001726,2]
[361735489,1747738251088,-731.84,0.0001726,2]
[361735490,1747738251098,-476.44,0.0001726,2]
[361735491,1747738251108,-430.0,0.0001726,2]
[361735492,1747738251118,-1820.69,0.0001726,2]
[361735493,1747738251127,-430.0,0.0001726,2]
[361735494,1747738251137,-872.77,0.0001726,2]
[361735495,1747738251147,-4745.31,0.0001726,2]
[361735496,1747738251158,-527.01,0.0001726,2]
[361735497,1747738251168,-430.0,0.0001726,2]
[361735498,1747738251180,-5627.3,0.0001726,2]
[361735499,1747738251190,-971.3,0.0001726,2]
[361735500,1747738251200,-430.0,0.0001726,2]
[361735501,1747738251210,-430.0,0.0001726,2]
[361735502,1747738251220,-430.0,0.0001726,2]
[361735503,1747738251230,-430.0,0.0001726,2]
[361735504,1747738251240,-430.0,0.0001726,2]
[361735505,1747738251250,-430.0,0.0001726,2]
[361735506,1747738251260,-430.0,0.0001726,2]
[361735507,1747738251270,-2019.01,0.0001726,2]
[361735508,1747738251280,-430.0,0.0001726,2]
[361735509,1747738251292,-430.0,0.0001726,2]
[361735510,1747738251303,-830.49,0.0001726,2]
[361735511,1747738251312,-310.0,0.0001726,2]
[361735512,1747738251322,-318.86678483,0.0001726,2]
[361735513,1747738251332,-310.0,0.0001726,2]
[361735514,1747738251343,-844.01,0.0001726,2]
[361735515,1747738251353,-430.0,0.0001726,2]
[361735516,1747738251363,-310.0,0.0001726,2]
[361735517,1747738251372,-430.0,0.0001726,2]
[361735518,1747738251385,-674.04,0.0001726,2]
[361735519,1747738251399,-775.5,0.0001726,2]
[361735520,1747738251410,-430.0,0.0001726,2]
[361735521,1747738251420,-310.0,0.0001726,2]
[361735522,1747738251429,-844.73,0.0001726,2]
[361735523,1747738251439,-740.93,0.0001726,2]
[361735524,1747738251449,-926.22,0.0001726,2]
[361735525,1747738251459,-310.0,0.0001726,2]
[361735526,1747738251469,-430.0,0.0001726,2]
[361735527,1747738251479,-500.0,0.00017289,2]
[361735528,1747738251490,-151.0,0.000173,2]
[361735529,1747738251500,-372.48068192,0.00017321,2]
[361735530,1747738251510,-500.0,0.00017321,2]
[361735531,1747738251521,-371.66233999,0.00017322,2]
[361735532,1747738251530,-151.0,0.000174,2]
[361735533,1747738251541,-151.0,0.000174,2]
[361735534,1747738251552,-1083.841589,0.00017451,2]
[361735535,1747738251562,-154.186078,0.00017452,2]
[361735536,1747738251572,-268.505274,0.00017452,2]
[361735537,1747738251582,-151.0,0.00017452,2]
[361735538,1747738251593,-151.0,0.000175,2]
[361735539,1747738251603,-14441.76249022,0.00017521,2]
[361735540,1747738251613,-151.0,0.00017534,2]
[361735541,1747738251623,-151.0,0.00017534,2]
[361735542,1747738251634,-151.0,0.00017534,2]
[361735543,1747738251644,-151.0,0.00017534,2]
[361735544,1747738251656,-151.0,0.00017534,2]
[361735545,1747738251667,-430.0,0.00017534,2]
[361735546,1747738251678,-430.0,0.00017534,2]
[361735547,1747738251689,-261.30385589,0.00017534,2]
[361735548,1747738251699,-430.0,0.00017534,2]
[361735549,1747738251709,-430.0,0.00017534,2]
[361735550,1747738251720,-430.0,0.00017534,2]
[361735551,1747738251730,-430.0,0.00017534,2]
[361735552,1747738251741,-430.0,0.00017534,2]
[361735553,1747738251752,-430.0,0.00017534,2]
[361735554,1747738251763,-430.0,0.00017534,2]
[361735555,1747738251773,-430.0,0.00017534,2]
[361735556,1747738251783,-430.0,0.00017534,2]
[361735557,1747738251793,-430.0,0.00017534,2]
[361735558,1747738251804,-430.0,0.00017534,2]
[361735559,1747738251815,-430.0,0.00017534,2]
[361735560,1747738251827,-430.0,0.00017534,2]
[361735561,1747738251838,-430.0,0.00017534,2]
[361735562,1747738251848,-579.20302463,0.00017534,2]
[361735563,1747738251858,-430.0,0.00017534,2]
[361735564,1747738251869,-430.0,0.00017534,2]
[361735565,1747738251883,-1776.74,0.00017534,2]
[361735566,1747738251893,-3412.88,0.00017534,2]
[361735567,1747738251905,-520.16,0.00017534,2]
[361735568,1747738251916,-1930.13,0.00017534,2]
[361735569,1747738251927,-430.0,0.00017534,2]
[361735570,1747738251938,-430.0,0.00017534,2]
[361735571,1747738251951,-1061.63,0.00017534,2]
[361735572,1747738251962,-603.79,0.00017534,2]
[361735573,1747738251972,-506.36,0.00017534,2]
[361735574,1747738251983,-430.0,0.00017534,2]
[361735575,1747738251997,-430.0,0.00017534,2]
[361735576,1747738252008,-430.0,0.00017534,2]
[361735577,1747738252019,-1753.15,0.00017534,2]
[361735578,1747738252031,-1305.03,0.00017534,2]
[361735579,1747738252041,-430.0,0.00017534,2]
[361735580,1747738252052,-691.23,0.00017534,2]
[361735581,1747738252062,-1148.42,0.00017534,2]
[361735582,1747738252072,-572.24,0.00017534,2]
[361735583,1747738252081,-2306.53,0.00017534,2]
[361735584,1747738252092,-430.0,0.00017534,2]
[361735585,1747738252102,-430.0,0.00017534,2]
[361735586,1747738252112,-430.0,0.00017534,2]
[361735587,1747738252122,-582.21,0.00017534,2]
[361735588,1747738252132,-430.0,0.00017534,2]
[361735589,1747738252143,-430.0,0.00017534,2]
[361735590,1747738252153,-430.0,0.00017534,2]
[361735591,1747738252164,-869.16,0.00017534,2]
[361735592,1747738252174,-1275.53,0.00017534,2]
[361735593,1747738252185,-596.79,0.00017534,2]
[361735594,1747738252196,-430.0,0.00017534,2]
[361735595,1747738252206,-958.75,0.00017534,2]
[361735596,1747738252216,-430.0,0.00017534,2]
[361735597,1747738252227,-430.0,0.00017534,2]
[361735598,1747738252237,-1444.05,0.00017534,2]
[361735599,1747738252248,-430.0,0.00017534,2]
[361735600,1747738252258,-430.0,0.00017534,2]
[361735601,1747738252269,-812.17,0.00017534,2]
[361735602,1747738252279,-430.0,0.00017534,2]
[361735603,1747738252290,-573.94,0.00017534,2]
[361735604,1747738252300,-468.61860665,0.00017534,2]
[361735605,1747738252311,-430.0,0.00017534,2]
[361735606,1747738252321,-852.85,0.00017534,2]
[361735607,1747738252331,-594.94,0.00017534,2]
[361735608,1747738252341,-1179.22,0.00017534,2]
[361735609,1747738252353,-660.64,0.00017534,2]
[361735610,1747738252363,-451.17,0.00017534,2]
[361735611,1747738252373,-1760.65,0.00017534,2]
[361735612,1747738252383,-430.0,0.00017534,2]
[361735613,1747738252394,-447.88,0.00017534,2]
[361735614,1747738252404,-731.84,0.00017534,2]
[361735615,1747738252414,-476.44,0.00017534,2]
[361735616,1747738252427,-430.0,0.00017534,2]
[361735617,1747738252438,-1820.69,0.00017534,2]
[361735618,1747738252456,-430.0,0.00017534,2]
[361735619,1747738252467,-872.77,0.00017534,2]
[361735620,1747738252478,-4745.31,0.00017534,2]
[361735621,1747738252489,-527.01,0.00017534,2]
[361735622,1747738252502,-430.0,0.00017534,2]
[361735623,1747738252514,-5627.3,0.00017534,2]
[361735624,1747738252525,-971.3,0.00017534,2]
[361735625,1747738252535,-430.0,0.00017534,2]
[361735626,1747738252546,-430.0,0.00017534,2]
[361735627,1747738252558,-430.0,0.00017534,2]
[361735628,1747738252570,-530.0,0.00017534,2]
[361735629,1747738252580,-430.0,0.00017534,2]
[361735630,1747738252593,-530.0,0.00017534,2]
[361735631,1747738252604,-430.0,0.00017534,2]
[361735632,1747738252616,-2019.01,0.00017534,2]
[361735633,1747738252627,-430.0,0.00017534,2]
[361735634,1747738252637,-555.32,0.00017534,2]
[361735635,1747738252647,-830.49,0.00017534,2]
[361735636,1747738252658,-844.01,0.00017534,2]
[361735637,1747738252668,-430.0,0.00017534,2]
[361735638,1747738252679,-430.0,0.00017534,2]
[361735639,1747738252690,-674.04,0.00017534,2]
[361735640,1747738252700,-775.5,0.00017534,2]
[361735641,1747738252711,-530.0,0.00017534,2]
[361735642,1747738252722,-844.73,0.00017534,2]
[361735643,1747738252733,-740.93,0.00017534,2]
[361735644,1747738252874,-926.22,0.00017534,2]
[361735645,1747738252887,-430.0,0.00017534,2]
[361735646,1747738252898,-247.98158201,0.00017545,2]
[361735647,1747738252908,-566.40613226,0.00017559,2]
[361735648,1747738252919,-1500.0,0.00017568,2]
[361735649,1747738252929,-529.44749862,0.00017568,2]
[361735650,1747738252939,-503.84782089,0.00017568,2]
[361735651,1747738252949,-1500.0,0.00017568,2]
[361735652,1747738252959,-1500.0,0.00017568,2]
[361735653,1747738252969,-1000.0,0.00017568,2]
[361735654,1747738252980,-151.0,0.000177,2]
[361735655,1747738252990,-235.80868773,0.00017794,2]
[361735656,1747738253000,-384.76,0.00017796,3]
[361735657,1747738253010,-151.0,0.00017808,2]
[361735658,1747738253019,-151.0,0.00017808,2]
[361735659,1747738253029,-151.0,0.00017808,2]
[361735660,1747738253039,-151.0,0.00017808,2]
[361735661,1747738253048,-151.0,0.00017808,2]
[361735662,1747738253057,-151.0,0.00017808,2]
[361735663,1747738253067,-151.0,0.00017808,2]
[361735664,1747738253076,-151.0,0.00017808,2]
[361735665,1747738253086,-151.0,0.00017808,2]
[361735666,1747738253096,-259.467851,0.00017808,2]
[361735667,1747738253106,-430.0,0.00017808,2]
[361735668,1747738253116,-430.0,0.00017808,2]
[361735669,1747738253126,-430.0,0.00017808,2]
[361735670,1747738253136,-430.0,0.00017808,2]
[361735671,1747738253146,-430.0,0.00017808,2]
[361735672,1747738253155,-430.0,0.00017808,2]
[361735673,1747738253165,-430.0,0.00017808,2]
[361735674,1747738253175,-430.0,0.00017808,2]
[361735675,1747738253184,-430.0,0.00017808,2]
[361735676,1747738253194,-430.0,0.00017808,2]
[361735677,1747738253204,-430.0,0.00017808,2]
[361735678,1747738253214,-430.0,0.00017808,2]
[361735679,1747738253223,-430.0,0.00017808,2]
[361735680,1747738253233,-430.0,0.00017808,2]
[361735681,1747738253243,-430.0,0.00017808,2]
[361735682,1747738253253,-450.0,0.00017808,2]
[361735683,1747738253263,-430.0,0.00017808,2]
[361735684,1747738253273,-430.0,0.00017808,2]
[361735685,1747738253283,-1776.74,0.00017808,2]
[361735686,1747738253293,-3412.88,0.00017808,2]
[361735687,1747738253303,-520.16,0.00017808,2]
[361735688,1747738253314,-1930.13,0.00017808,2]
[361735689,1747738253323,-430.0,0.00017808,2]
[361735690,1747738253334,-430.0,0.00017808,2]
[361735691,1747738253344,-1061.63,0.00017808,2]
[361735692,1747738253354,-603.79,0.00017808,2]
[361735693,1747738253363,-506.36,0.00017808,2]
[361735694,1747738253372,-180.75010099,0.00017808,2]
[361735695,1747738253381,-430.0,0.00017808,2]
[361735696,1747738253391,-430.0,0.00017808,2]
[361735697,1747738253401,-1753.15,0.00017808,2]
[361735698,1747738253411,-1305.03,0.00017808,2]
[361735699,1747738253421,-430.0,0.00017808,2]
[361735700,1747738253431,-691.23,0.00017808,2]
[361735701,1747738253441,-1148.42,0.00017808,2]
[361735702,1747738253450,-572.24,0.00017808,2]
[361735703,1747738253460,-2306.53,0.00017808,2]
[361735704,1747738253470,-430.0,0.00017808,2]
[361735705,1747738253479,-281.75529407,0.00017808,2]
[361735706,1747738253490,-430.0,0.00017808,2]
[361735707,1747738253499,-582.21,0.00017808,2]
[361735708,1747738253509,-430.0,0.00017808,2]
[361735709,1747738253519,-550.0,0.00017808,2]
[361735710,1747738253529,-430.0,0.00017808,2]
[361735711,1747738253539,-869.16,0.00017808,2]
[361735712,1747738253549,-1275.53,0.00017808,2]
[361735713,1747738253559,-596.79,0.00017808,2]
[361735714,1747738253569,-430.0,0.00017808,2]
[361735715,1747738253579,-958.75,0.00017808,2]
[361735716,1747738253589,-430.0,0.00017808,2]
[361735717,1747738253600,-430.0,0.00017808,2]
[361735718,1747738253610,-1444.05,0.00017808,2]
[361735719,1747738253619,-430.0,0.00017808,2]
[361735720,1747738253630,-430.0,0.00017808,2]
[361735721,1747738253639,-812.17,0.00017808,2]
[361735722,1747738253649,-430.0,0.00017808,2]
[361735723,1747738253660,-573.94,0.00017808,2]
[361735724,1747738253671,-852.85,0.00017808,2]
[361735725,1747738253682,-430.0,0.00017808,2]
[361735726,1747738253692,-594.94,0.00017808,2]
[361735727,1747738253702,-1179.22,0.00017808,2]
[361735728,1747738253712,-660.64,0.00017808,2]
[361735729,1747738253721,-451.17,0.00017808,2]
[361735730,1747738253731,-1760.65,0.00017808,2]
[361735731,1747738253740,-320.05168872,0.00017808,2]
[361735732,1747738253752,-447.88,0.00017808,2]
[361735733,1747738253762,-731.84,0.00017808,2]
[361735734,1747738253773,-476.44,0.00017808,2]
[361735735,1747738253783,-430.0,0.00017808,2]
[361735736,1747738253794,-1820.69,0.00017808,2]
[361735737,1747738253804,-430.0,0.00017808,2]
[361735738,1747738253814,-872.77,0.00017808,2]
[361735739,1747738253829,-4745.31,0.00017808,2]
[361735740,1747738253839,-527.01,0.00017808,2]
[361735741,1747738253849,-430.0,0.00017808,2]
[361735742,1747738253860,-5627.3,0.00017808,2]
[361735743,1747738253872,-971.3,0.00017808,2]
[361735744,1747738253891,-435.55,0.00017808,2]
[361735745,1747738253911,-430.0,0.00017808,2]
[361735746,1747738253927,-430.0,0.00017808,2]
[361735747,1747738253938,-451.37146306,0.00017808,2]
[361735748,1747738253949,-430.0,0.00017808,2]
[361735749,1747738253959,-2019.01,0.00017808,2]
[361735750,1747738253969,-430.0,0.00017808,2]
[361735751,1747738253980,-830.49,0.00017808,2]
[361735752,1747738253990,-844.01,0.00017808,2]
[361735753,1747738254000,-430.0,0.00017808,2]
[361735754,1747738254010,-430.0,0.00017808,2]
[361735755,1747738254020,-674.04,0.00017808,2]
[361735756,1747738254029,-775.5,0.00017808,2]
[361735757,1747738254039,-844.73,0.00017808,2]
[361735758,1747738254049,-740.93,0.00017808,2]
[361735759,1747738254058,-926.22,0.00017808,2]
[361735760,1747738254069,-430.0,0.00017808,2]
[361735761,1747738254079,-14441.76249022,0.00017831,2]
[361735762,1747738254089,-500.0,0.00017838,2]
[361735763,1747738254098,-151.0,0.000179,2]
[361735764,1747738254108,-215.0738,0.00017914,2]
[361735765,1747738254117,-420.0,0.00017921,2]
[361735766,1747738254127,-40034.73917206,0.00018,2]
[361735767,1747738254137,-1000.0,0.00018,18]
[361735768,1747738254146,-151.0,0.00018,2]
[361735769,1747738254156,-151.0,0.00018,2]
[361735770,1747738254167,-151.0,0.00018,2]
[361735771,1747738254178,-243.553122,0.00018,2]
[361735772,1747738254188,-1680.0,0.00018011,2]
[361735773,1747738254199,-151.0,0.00018082,2]
[361735774,1747738254210,-151.0,0.00018082,2]
[361735775,1747738254221,-151.0,0.00018082,2]
[361735776,1747738254231,-430.0,0.00018082,2]
[361735777,1747738254242,-430.0,0.00018082,2]
[361735778,1747738254252,-430.0,0.00018082,2]
[361735779,1747738254262,-430.0,0.00018082,2]
[361735780,1747738254273,-430.0,0.00018082,2]
[361735781,1747738254283,-430.0,0.00018082,2]
[361735782,1747738254292,-430.0,0.00018082,2]